bitfinex/quotes_BTCUSD_20250313
["timestamp","ask_amount","ask_price","bid_price","bid_amount"]
[1741871718341,0.60573412,82742.0,82741.0,0.0001696]
[1741871718535,0.20039327,82742.0,82741.0,0.0001696]
[1741871718742,0.20039327,82742.0,82741.0,0.0122546]
[1741871718743,0.03739327,82742.0,82741.0,0.0122546]
[1741871718968,0.04947827,82742.0,82741.0,0.0001696]
[1741871719448,0.0209412,82742.0,82741.0,0.0122546]
[1741871719675,0.0189412,82742.0,82741.0,0.0122546]
[1741871721010,0.0189412,82742.0,82741.0,0.0142546]
[1741871721504,0.0189412,82742.0,82741.0,0.0182546]
[1741871721905,0.0189412,82742.0,82741.0,0.55586401]
[1741871722109,0.0189412,82742.0,82741.0,0.63215559]
[1741871722336,0.012081,82771.0,82766.0,0.012082]
[1741871722545,0.241635,82770.0,82764.0,0.241648]
[1741871722753,0.241648,82765.0,82760.0,0.012083]
[1741871722974,0.012082,82763.0,82756.0,0.241673]
[1741871723187,0.253757,82757.0,82751.0,0.012084]
[1741871723409,0.012083,82756.0,82746.0,0.253787]
[1741871723612,0.012083,82756.0,82744.0,0.241706]
[1741871723811,0.012083,82756.0,82745.0,0.241704]
[1741871724087,0.012083,82756.0,82748.0,0.012084]
[1741871724745,0.24171,82744.0,82741.0,0.0495696]
[1741871724945,0.012085,82745.0,82741.0,0.0455696]
[1741871725148,0.012084,82748.0,82741.0,0.0455696]
[1741871725149,0.012084,82751.0,82744.0,0.012085]
[1741871725318,0.012084,82751.0,82745.0,0.012085]
[1741871725319,0.01481716,82750.0,82745.0,0.012085]
[1741871725482,0.241664,82760.0,82753.0,0.253766]
[1741871725696,0.241664,82760.0,82754.0,0.012084]
[1741871725918,0.241664,82760.0,82754.0,0.253761]
[1741871726289,0.253744,82761.0,82756.0,0.012083]
[1741871726701,0.253739,82762.0,82757.0,0.012083]
[1741871726903,0.76716,82767.0,82764.0,0.24165]
[1741871727291,0.779242,82767.0,82756.0,0.012083]
[1741871727492,0.241652,82764.0,82754.0,0.241679]
[1741871727636,0.241671,82757.0,82756.0,0.001]
[1741871727823,0.241671,82757.0,82750.0,0.012084]
[1741871727824,0.241679,82755.0,82750.0,0.012084]
[1741871728034,0.241679,82755.0,82750.0,0.253773]
[1741871728263,0.241667,82759.0,82754.0,0.001]
[1741871728665,0.241667,82759.0,82753.0,0.012084]
[1741871729024,0.01893454,82758.0,82756.0,0.241671]
[1741871729258,0.01893454,82758.0,82757.0,0.012083]
[1741871730572,0.01893454,82758.0,82754.0,0.003]
[1741871730751,0.01893454,82758.0,82753.0,0.255764]
[1741871730752,0.012084,82754.0,82753.0,0.002]
[1741871730957,0.02646306,82754.0,82753.0,0.002]
[1741871731793,0.2538,82742.0,82741.0,0.0001696]
[1741871731996,0.26905535,82742.0,82741.0,0.0001696]
[1741871732204,0.73193535,82742.0,82741.0,0.0001696]
[1741871732635,0.75087499,82742.0,82741.0,0.0001696]
[1741871732984,0.75087499,82742.0,82741.0,0.0051696]
[1741871733179,0.58799499,82742.0,82741.0,0.0051696]
[1741871733387,0.59992132,82742.0,82741.0,0.0051696]
[1741871733597,0.59992132,82742.0,82741.0,0.0001696]
[1741871733994,0.58799499,82742.0,82741.0,0.0001696]
[1741871734458,0.58799499,82742.0,82741.0,0.0011696]
[1741871735019,0.60253584,82742.0,82741.0,0.0011696]
[1741871735368,0.5835962,82742.0,82741.0,0.0011696]
[1741871735594,0.5835962,82742.0,82741.0,0.0021696]
[1741871735951,0.5835962,82742.0,82741.0,0.0011696]
[1741871736267,0.5855962,82742.0,82741.0,0.0011696]
[1741871736672,0.5855962,82742.0,82741.0,6e-07]
[1741871737263,0.253821,82735.0,82734.0,0.0001697]
[1741871737471,1.33706761,82735.0,82734.0,0.0001697]
[1741871738425,1.35601014,82735.0,82734.0,0.0001697]
[1741871739018,1.35901014,82735.0,82734.0,0.0001697]
[1741871739236,1.37355099,82735.0,82734.0,0.0001697]
[1741871739883,1.37655099,82735.0,82734.0,0.0001697]
[1741871740316,1.35601014,82735.0,82734.0,0.0001697]
[1741871740488,1.37055099,82735.0,82734.0,0.0001697]
[1741871740725,1.37455099,82735.0,82734.0,0.0001697]
[1741871740938,1.52285014,82735.0,82734.0,0.0001697]
[1741871741155,1.36001014,82735.0,82734.0,0.0001697]
[1741871741979,1.35601014,82735.0,82734.0,0.0001697]
[1741871742186,1.37055099,82735.0,82734.0,0.0001697]
[1741871742387,1.49251188,82735.0,82734.0,0.0001697]
[1741871742767,1.37255099,82735.0,82734.0,0.0001697]
[1741871743572,1.37155099,82735.0,82734.0,0.0001697]
[1741871743750,1.37055099,82735.0,82734.0,0.0001697]
[1741871743955,1.37455099,82735.0,82734.0,0.0001697]
[1741871744157,1.37255099,82735.0,82734.0,0.0001697]
[1741871744360,1.35801014,82735.0,82734.0,0.0001697]
[1741871744560,1.52381014,82735.0,82734.0,0.0001697]
[1741871744980,1.53835099,82735.0,82734.0,0.0001697]
[1741871745503,1.53635099,82735.0,82734.0,0.0001697]
[1741871745709,1.53935099,82735.0,82734.0,0.0001697]
[1741871746263,1.53635099,82735.0,82734.0,0.0001697]
[1741871746602,1.53535099,82735.0,82734.0,0.0001697]
[1741871747148,1.53735099,82735.0,82734.0,0.0001697]
[1741871747819,1.52081014,82735.0,82734.0,0.0001697]
[1741871748154,0.78942253,82735.0,82734.0,0.0001697]
[1741871748359,0.001,82735.0,82734.0,0.0122557]
[1741871748762,0.002,82735.0,82734.0,0.0122557]
[1741871749156,0.002,82735.0,82734.0,0.2539937]
[1741871749559,0.001,82735.0,82734.0,0.2539937]
[1741871749761,0.012085,82744.0,82739.0,0.241723]
[1741871749969,0.012085,82743.0,82738.0,0.012086]
[1741871750164,0.012085,82743.0,82738.0,0.011086]
[1741871751124,0.241698,82748.0,82734.0,0.2579937]
[1741871751125,0.241735,82736.0,82734.0,0.0021697]
[1741871751329,0.012086,82735.0,82734.0,0.0021697]
[1741871751536,0.012086,82735.0,82734.0,0.0001697]
[1741871751673,0.02785261,82735.0,82734.0,0.0001697]
[1741871751877,0.02785261,82735.0,82734.0,0.0041697]
[1741871751878,0.01576661,82735.0,82734.0,0.0041697]
[1741871752077,0.01893863,82742.0,82735.0,0.241735]
[1741871752389,0.253815,82737.0,82734.0,0.0001697]
[1741871752621,0.012085,82741.0,82734.0,0.0001697]
[1741871752622,0.241725,82739.0,82734.0,0.0001697]
[1741871752990,0.241725,82739.0,82734.0,0.0122557]
[1741871753191,0.253817,82737.0,82734.0,0.0041697]
[1741871753392,0.01562053,82739.0,82734.0,0.0021697]
[1741871753619,0.02770653,82739.0,82734.0,0.0021697]
[1741871753829,0.253812,82738.0,82734.0,0.0021697]
[1741871754032,0.253812,82738.0,82734.0,0.0051697]
[1741871754555,0.241734,82736.0,82734.0,0.0031697]
[1741871754935,0.01562053,82739.0,82735.0,0.012086]
[1741871755136,0.000339,82741.0,82739.0,0.253807]
[1741871755372,0.000339,82741.0,82740.0,0.012086]
[1741871755580,0.000339,82741.0,82737.0,0.241727]
[1741871755920,0.000339,82741.0,82737.0,0.253813]
[1741871756083,0.000339,82741.0,82738.0,0.241725]
[1741871756292,0.000339,82741.0,82740.0,0.012086]
[1741871757019,0.241732,82737.0,82732.0,0.253831]
[1741871757222,0.241732,82737.0,82734.0,0.0001697]
[1741871757223,0.253821,82735.0,82734.0,0.0001697]
[1741871757387,0.26958761,82735.0,82734.0,0.0001697]
[1741871757996,0.012086,82736.0,82734.0,0.0001697]
[1741871758403,0.01893968,82735.0,82734.0,0.0001697]
[1741871758944,0.01893968,82735.0,82734.0,0.0011697]
[1741871759909,0.01893968,82735.0,82734.0,0.0001697]
[1741871760125,0.01893968,82735.0,82734.0,0.0132557]
[1741871760319,0.01893968,82735.0,82734.0,0.0122557]
[1741871760519,0.01893968,82735.0,82734.0,0.0152557]
[1741871760906,0.01893968,82735.0,82734.0,0.01646425]
[1741871761111,0.01893968,82735.0,82734.0,0.1371557]
[1741871761310,0.01893968,82735.0,82734.0,0.67476517]
[1741871761555,0.01893968,82735.0,82734.0,0.67355669]
[1741871761980,0.01893968,82735.0,82734.0,0.67755669]
[1741871762348,0.01893968,82735.0,82734.0,0.67355669]
[1741871762784,0.01993968,82735.0,82734.0,0.67755669]
[1741871762993,0.01993968,82735.0,82734.0,0.67455669]
[1741871763430,0.01893968,82735.0,82734.0,0.67555669]
[1741871763564,0.01993968,82735.0,82734.0,0.67455669]
[1741871763767,0.001,82735.0,82734.0,0.67455669]
[1741871763967,0.001,82735.0,82734.0,0.68055669]
[1741871765642,0.0003388,82763.0,82762.0,0.012082]
[1741871765855,0.0003388,82763.0,82762.0,0.253738]
[1741871766139,0.0124208,82763.0,82757.0,0.253752]
[1741871766388,0.0003388,82763.0,82762.0,0.012082]
[1741871766568,0.0003388,82763.0,82758.0,0.012083]
[1741871766721,0.0003388,82763.0,82762.0,0.012082]
[1741871767137,0.0003388,82763.0,82762.0,0.014082]
[1741871767320,0.0003388,82763.0,82762.0,0.01529025]
[1741871767523,0.0003388,82763.0,82762.0,0.01329014]
[1741871767980,0.0003388,82763.0,82762.0,1.512082]
[1741871768615,0.0003388,82763.0,82762.0,1.67788299]
[1741871769463,0.0003388,82763.0,82762.0,2.78788299]
[1741871769873,0.0003388,82763.0,82762.0,2.79288299]
[1741871770103,0.0003388,82763.0,82762.0,3.09088299]
[1741871770350,0.541532,82805.0,82762.0,3.09088299]
[1741871770351,0.10425064,82806.0,82772.0,0.253708]
[1741871770552,0.01892777,82794.0,82772.0,0.65916899]
[1741871771681,0.012079,82782.0,82772.0,0.539468]
[1741871771887,0.25366,82788.0,82772.0,0.463968]
[1741871772098,0.253666,82786.0,82772.0,0.301408]
[1741871772291,0.01892944,82774.0,82772.0,0.059781]
[1741871772491,0.01892944,82774.0,82765.0,0.012082]
[1741871772492,0.03101044,82774.0,82765.0,0.012082]
[1741871772694,0.03101044,82774.0,82768.0,0.012081]
[1741871772868,0.01892944,82774.0,82772.0,0.012081]
[1741871773070,0.241612,82778.0,82772.0,0.016081]
[1741871773275,0.241599,82782.0,82772.0,0.016081]
[1741871773477,0.241599,82782.0,82772.0,0.012081]
[1741871773798,0.253695,82777.0,82772.0,0.016081]
[1741871773935,0.253673,82784.0,82772.0,0.012081]
[1741871774138,0.241612,82778.0,82772.0,0.014081]
[1741871774368,0.01208,82777.0,82772.0,0.002]
[1741871774574,0.541588,82786.0,82772.0,0.002]
[1741871774769,0.241591,82785.0,82772.0,0.014081]
[1741871775029,0.012079,82787.0,82772.0,0.014081]
[1741871775235,0.01208,82781.0,82772.0,0.002]
[1741871775441,0.241615,82777.0,82772.0,0.017081]
[1741871775855,0.253682,82781.0,82772.0,0.017081]
[1741871776070,0.0192685,82773.0,82772.0,0.017081]
[1741871776275,0.0192685,82773.0,82772.0,0.005]
[1741871776444,0.0192685,82773.0,82772.0,0.017081]
[1741871778043,0.0192685,82773.0,82772.0,1.517081]
[1741871778752,0.0192685,82773.0,82772.0,1.512081]
[1741871779050,0.0192685,82773.0,82772.0,1.520081]
[1741871779607,0.0192685,82773.0,82772.0,1.508]
[1741871779774,0.2729735,82773.0,82772.0,1.508]
[1741871780594,0.3533735,82773.0,82772.0,1.504]
[1741871780795,0.36636564,82773.0,82772.0,0.004]
[1741871780994,0.36636564,82773.0,82772.0,0.006]
[1741871781409,0.36636564,82773.0,82772.0,0.002]
[1741871781606,0.36636564,82773.0,82772.0,0.004]
[1741871781802,0.36636564,82773.0,82772.0,0.002]
[1741871782008,0.04434164,82773.0,82772.0,0.002]
[1741871782209,0.0192685,82773.0,82772.0,0.001]
[1741871782766,0.0003388,82773.0,82772.0,0.001]
[1741871783074,0.0003388,82773.0,82772.0,0.013081]
[1741871783203,0.0003388,82773.0,82772.0,0.01628893]
[1741871783414,8e-07,82773.0,82772.0,1.24398912]
[1741871783614,8e-07,82773.0,82772.0,1.62278119]
[1741871783818,8e-07,82773.0,82772.0,1.62178119]
[1741871784016,8e-07,82773.0,82772.0,1.67378044]
[1741871784443,8e-07,82773.0,82772.0,1.62178119]
[1741871784647,8e-07,82773.0,82772.0,1.62578119]
[1741871784974,8e-07,82773.0,82772.0,1.62278119]
[1741871785176,8e-07,82773.0,82772.0,1.62878119]
[1741871785468,8e-07,82773.0,82772.0,1.62078119]
[1741871785599,8e-07,82773.0,82772.0,1.62678119]
[1741871785800,8e-07,82773.0,82772.0,1.63178119]
[1741871787196,8e-07,82773.0,82772.0,1.73863497]
[1741871787403,8e-07,82773.0,82772.0,1.73263497]
[1741871787817,8e-07,82773.0,82772.0,1.75317582]
[1741871788021,0.0003386,82809.0,82799.0,0.253625]
[1741871788224,0.01892527,82806.0,82799.0,0.253625]
[1741871788845,0.01892527,82806.0,82799.0,1.753625]
[1741871789905,0.01892527,82806.0,82799.0,1.77151641]
[1741871790055,0.01892527,82806.0,82799.0,1.506]
[1741871790261,0.01892527,82806.0,82799.0,0.006]
[1741871790262,0.0124158,82800.0,82799.0,0.006]
[1741871790611,0.0124158,82800.0,82799.0,0.011]
[1741871790742,0.0003388,82800.0,82799.0,0.011]
[1741871791144,0.0124158,82800.0,82799.0,0.006]
[1741871791552,0.253625,82799.0,82798.0,0.4166992]
[1741871791748,0.26472029,82799.0,82798.0,0.4166992]
[1741871791951,0.01208,82781.0,82776.0,0.253693]
[1741871792156,0.253672,82784.0,82778.0,0.01208]
[1741871792378,0.012079,82788.0,82779.0,0.01208]
[1741871792576,0.02426848,82788.0,82779.0,0.01208]
[1741871792834,0.01892801,82783.0,82782.0,0.012079]
[1741871794199,0.01892801,82783.0,82782.0,0.01628691]
[1741871795002,0.01892801,82783.0,82782.0,0.015079]
[1741871795201,0.01892801,82783.0,82782.0,0.01628682]
[1741871795525,0.01892801,82783.0,82782.0,0.55668701]
[1741871795704,0.01892801,82783.0,82782.0,0.55547919]
[1741871795913,0.01892801,82783.0,82782.0,0.55147919]
[1741871796397,0.01892801,82783.0,82782.0,0.6582972]
[1741871796577,0.01892801,82783.0,82782.0,0.4347782]
[1741871796804,0.01892801,82783.0,82782.0,0.4397782]
[1741871797409,0.01892801,82783.0,82782.0,0.4276992]
[1741871797694,0.01892801,82783.0,82782.0,0.4347782]
[1741871797910,0.01892801,82783.0,82782.0,0.4327782]
[1741871798307,0.01892801,82783.0,82782.0,0.4377782]
[1741871798743,0.01892801,82783.0,82782.0,0.4327782]
[1741871799160,0.01892801,82783.0,82782.0,0.4377782]
[1741871799561,0.01892801,82783.0,82782.0,0.6672972]
[1741871799782,0.01892801,82783.0,82782.0,0.4256992]
[1741871799956,0.01892801,82783.0,82782.0,0.4377782]
[1741871800357,0.01892801,82783.0,82782.0,0.6793762]
[1741871800579,0.01892801,82783.0,82782.0,0.79507719]
[1741871800806,0.0003388,82800.0,82799.0,0.253625]
[1741871803078,0.0003388,82800.0,82799.0,0.256625]
[1741871804211,0.0003388,82800.0,82799.0,0.258625]
[1741871807874,0.0003388,82800.0,82799.0,0.005]
[1741871808115,0.0124158,82800.0,82799.0,0.005]
[1741871808471,0.0003388,82800.0,82799.0,0.005]
[1741871809142,0.0003388,82800.0,82799.0,0.017077]
[1741871809336,0.01926291,82800.0,82799.0,0.017077]
[1741871809691,0.01926291,82800.0,82799.0,0.005]
[1741871809890,0.01926291,82800.0,82799.0,0.017077]
[1741871810897,0.01926291,82800.0,82799.0,0.005]
[1741871812617,0.01926291,82800.0,82799.0,0.017077]
[1741871812820,0.03133991,82800.0,82799.0,0.005]
[1741871813027,0.012079,82784.0,82773.0,0.00920086]
[1741871813245,0.241621,82775.0,82773.0,0.00920086]
[1741871813466,0.012081,82774.0,82773.0,0.00920086]
[1741871813668,0.0796,82777.0,82773.0,0.00920086]
[1741871813867,0.253692,82778.0,82773.0,0.0001694]
[1741871814119,0.01208,82780.0,82774.0,0.012081]
[1741871814323,0.253686,82780.0,82775.0,0.253696]
[1741871814525,0.3,82782.0,82776.0,0.253695]
[1741871814749,0.25411882,82781.0,82775.0,0.01208]
[1741871814954,0.091679,82784.0,82775.0,0.01208]
[1741871814955,0.0796,82784.0,82783.0,0.012079]
[1741871815177,0.0796,82793.0,82791.0,0.012078]
[1741871815375,0.0796,82793.0,82790.0,0.241575]
[1741871815610,0.091678,82793.0,82787.0,0.241581]
[1741871816172,0.091678,82793.0,82788.0,0.253658]
[1741871816173,0.333246,82793.0,82788.0,0.253658]
[1741871816373,0.01392,82794.0,82793.0,0.012078]
[1741871816596,0.02537997,82794.0,82793.0,0.012078]
[1741871816779,0.01392,82794.0,82793.0,0.011078]
[1741871817403,0.01392,82794.0,82787.0,0.253659]
[1741871817404,0.254646,82793.0,82787.0,0.253659]
[1741871817562,0.001,82793.0,82790.0,0.25365]
[1741871817761,0.001,82793.0,82792.0,0.253647]
[1741871817957,0.001,82793.0,82791.0,1.5]
[1741871818258,0.001,82793.0,82790.0,0.25365]
[1741871818712,0.001,82793.0,82789.0,0.241577]
[1741871818882,0.241569,82792.0,82784.0,0.012079]
[1741871819101,0.001,82793.0,82788.0,0.253657]
[1741871819323,0.001,82793.0,82789.0,0.253654]
[1741871819529,0.001,82793.0,82788.0,0.012079]
[1741871819750,0.253649,82792.0,82787.0,0.241581]
[1741871820082,0.253649,82792.0,82787.0,0.25366]
[1741871820277,0.012078,82790.0,82783.0,0.253673]
[1741871820482,0.012078,82790.0,82784.0,0.012079]
[1741871820654,0.012078,82790.0,82786.0,0.241585]
[1741871820857,0.012078,82790.0,82785.0,0.012079]
[1741871821059,0.241589,82785.0,82778.0,0.253689]
[1741871821195,0.241589,82785.0,82779.0,0.253685]
[1741871821402,0.012079,82787.0,82781.0,0.253679]
[1741871821657,0.012079,82785.0,82777.0,0.24161]
[1741871821812,0.253691,82778.0,82773.0,0.0001694]
[1741871822014,0.01208,82779.0,82774.0,0.241619]
[1741871822218,0.241613,82777.0,82773.0,0.0001694]
[1741871822997,0.253693,82777.0,82773.0,0.0001694]
[1741871823182,0.253683,82781.0,82775.0,0.241616]
[1741871823581,0.253683,82781.0,82778.0,0.001]
[1741871824330,0.01208,82781.0,82778.0,0.001]
[1741871824534,0.01208,82781.0,82773.0,0.0162504]
[1741871824535,0.0781,82794.0,82788.0,0.012079]
[1741871824814,0.01454085,82801.0,82794.0,0.253639]
[1741871824815,0.2539628,82800.0,82794.0,0.253639]
[1741871825144,0.012077,82799.0,82794.0,0.253638]
[1741871825467,0.0003386,82793.0,82790.0,0.253652]
[1741871825694,0.0003386,82793.0,82792.0,0.012078]
[1741871825897,0.0003386,82793.0,82790.0,0.241572]
[1741871826108,0.0003386,82793.0,82792.0,0.012078]
[1741871826305,0.0003386,82793.0,82792.0,0.01328575]
[1741871826528,0.0003386,82793.0,82792.0,0.012078]
[1741871826732,0.0003386,82793.0,82781.0,0.01208]
[1741871826902,0.253657,82789.0,82784.0,0.253669]
[1741871827109,0.0003386,82793.0,82787.0,0.012079]
[1741871827330,0.0003386,82793.0,82792.0,0.012078]
[1741871828098,0.0003386,82793.0,82792.0,0.01328577]
[1741871828295,0.0003386,82793.0,82792.0,0.012078]
[1741871828501,0.0003386,82793.0,82792.0,0.01328566]
[1741871828948,0.0003386,82793.0,82792.0,0.012078]
[1741871829522,0.0003386,82793.0,82792.0,0.01189369]
[1741871829703,0.0003386,82793.0,82792.0,0.010686]
[1741871829904,0.0003386,82793.0,82792.0,0.13038699]
[1741871830106,0.01926419,82793.0,82792.0,0.13038699]
[1741871830553,0.01926419,82793.0,82792.0,0.13159462]
[1741871830800,6e-07,82793.0,82792.0,0.89419382]
[1741871831020,6e-07,82793.0,82792.0,0.89298619]
[1741871831547,6e-07,82793.0,82792.0,2.39298619]
[1741871832223,6e-07,82793.0,82792.0,2.39798619]
[1741871832435,6e-07,82793.0,82792.0,2.55994619]
[1741871833397,6e-07,82793.0,82792.0,2.56594619]
[1741871834826,6e-07,82793.0,82792.0,2.55494619]
[1741871835230,6e-07,82793.0,82792.0,2.56594619]
[1741871835452,6e-07,82793.0,82792.0,2.56094619]
[1741871835649,6e-07,82793.0,82792.0,2.55494619]
[1741871835830,6e-07,82793.0,82792.0,2.56094619]
[1741871836038,6e-07,82793.0,82792.0,2.56694619]
[1741871836728,6e-07,82793.0,82792.0,2.57194619]
[1741871836930,6e-07,82793.0,82792.0,2.62194544]
[1741871837157,4e-07,82800.0,82799.0,0.57316585]
[1741871837363,2e-07,82824.0,82820.0,0.253561]
[1741871837563,2e-07,82824.0,82820.0,1.17246119]
[1741871837763,2e-07,82824.0,82820.0,1.21976119]
[1741871837963,2e-07,82824.0,82820.0,2.71976119]
[1741871838573,2e-07,82824.0,82820.0,2.72476119]
[1741871838779,2e-07,82824.0,82820.0,2.64226119]
[1741871839877,2e-07,82824.0,82820.0,2.34226119]
[1741871840049,2e-07,82824.0,82820.0,2.45680119]
[1741871840655,2e-07,82824.0,82820.0,0.8321002]
[1741871840854,2e-07,82824.0,82820.0,0.8441002]
[1741871841011,2e-07,82824.0,82820.0,0.85587954]
[1741871841214,2e-07,82824.0,82820.0,0.84987954]
[1741871841635,2e-07,82824.0,82820.0,0.85487954]
[1741871842146,2e-07,82824.0,82820.0,0.84887954]
[1741871842346,2e-07,82824.0,82820.0,0.84387954]
[1741871842504,2e-07,82824.0,82820.0,0.84887954]
[1741871842710,2e-07,82824.0,82820.0,0.85487954]
[1741871842915,2e-07,82824.0,82820.0,1.26958053]
[1741871843343,2e-07,82824.0,82820.0,1.27558053]
[1741871844660,2e-07,82824.0,82820.0,1.28476233]
[1741871847972,2e-07,82824.0,82820.0,2.78476233]
[1741871848172,2e-07,82824.0,82820.0,2.78468233]
[1741871848390,2e-07,82824.0,82820.0,2.88032318]
[1741871848590,1e-06,82821.0,82820.0,2.92592318]
[1741871848770,0.01891599,82839.0,82838.0,0.253506]
[1741871848968,0.01891599,82839.0,82838.0,0.78990619]
[1741871849206,0.01891599,82839.0,82838.0,0.6702052]
[1741871849415,0.01891599,82839.0,82838.0,2.1702052]
[1741871849615,0.01891599,82839.0,82838.0,0.6702052]
[1741871849817,0.01891599,82839.0,82838.0,0.4166992]
[1741871850024,0.01891599,82839.0,82838.0,0.6702052]
[1741871851674,0.01891599,82839.0,82838.0,0.6722052]
[1741871851880,0.01891599,82839.0,82838.0,0.78990619]
[1741871852085,0.0003388,82846.0,82845.0,0.253484]
[1741871852283,0.0003388,82846.0,82845.0,0.37318499]
[1741871853914,0.0003388,82846.0,82845.0,0.37518499]
[1741871854111,0.0003388,82846.0,82845.0,0.37318499]
[1741871854629,0.0003388,82846.0,82845.0,0.256484]
[1741871855044,0.0003388,82846.0,82845.0,0.259484]
[1741871856621,0.01925106,82846.0,82845.0,0.259484]
[1741871857737,0.01925106,82846.0,82845.0,0.37918499]
[1741871857943,2.6e-07,82847.0,82845.0,1.09588419]
[1741871858133,2.6e-07,82847.0,82846.0,0.43297763]
[1741871858379,2.6e-07,82847.0,82846.0,1.60681104]
[1741871858798,2.6e-07,82847.0,82846.0,3.10681104]
[1741871859392,2.6e-07,82847.0,82846.0,2.09597019]
[1741871859618,2.6e-07,82847.0,82846.0,0.4287692]
[1741871859834,0.25347826,82847.0,82846.0,0.4166992]
[1741871860050,0.01207,82844.0,82835.0,0.012072]
[1741871860258,0.241423,82842.0,82831.0,0.4166992]
[1741871860464,0.253524,82832.0,82831.0,0.4166992]
[1741871860668,0.253509,82837.0,82831.0,0.4166992]
[1741871860938,0.241427,82841.0,82834.0,0.012072]
[1741871861149,0.07960026,82847.0,82845.0,0.253482]
[1741871861371,2.6e-07,82847.0,82846.0,0.241411]
[1741871861570,2.6e-07,82847.0,82845.0,0.01107]
[1741871861781,0.01891448,82847.0,82846.0,0.253481]
[1741871861928,0.01891448,82847.0,82846.0,0.006]
[1741871862125,0.03098448,82847.0,82846.0,0.006]
[1741871862335,0.012071,82838.0,82831.0,0.4287712]
[1741871862544,0.241447,82834.0,82831.0,0.4166992]
[1741871863126,0.253524,82832.0,82831.0,0.4166992]
[1741871863667,0.241452,82832.0,82831.0,0.4186992]
[1741871863891,0.253524,82832.0,82831.0,0.4186992]
[1741871864256,0.253524,82832.0,82831.0,0.002]
[1741871864449,0.253524,82832.0,82831.0,0.004]
[1741871864822,0.253524,82832.0,82831.0,0.006]
[1741871865374,0.253524,82832.0,82831.0,0.004]
[1741871865552,0.253524,82832.0,82831.0,0.006]
[1741871865689,0.253524,82832.0,82831.0,0.002]
[1741871866946,0.24143,82840.0,82835.0,0.241443]
[1741871867167,0.012072,82836.0,82831.0,0.257524]
[1741871867304,0.253506,82838.0,82832.0,0.253522]
[1741871867675,0.01891697,82835.0,82834.0,0.253518]
[1741871867864,0.01891697,82835.0,82833.0,0.012072]
[1741871868006,0.253523,82833.0,82831.0,0.002]
[1741871868213,0.241446,82834.0,82831.0,0.002]
[1741871868433,0.253524,82832.0,82831.0,0.002]
[1741871868642,0.553524,82832.0,82831.0,0.002]
[1741871868849,0.628724,82832.0,82831.0,0.002]
[1741871869047,0.0752,82832.0,82831.0,0.002]
[1741871869254,0.087272,82832.0,82831.0,0.002]
[1741871869758,0.0752,82832.0,82830.0,0.241456]
[1741871870002,0.01891697,82835.0,82834.0,0.253518]
[1741871870633,0.01891697,82835.0,82831.0,0.253526]
[1741871870804,0.012072,82834.0,82828.0,0.253534]
[1741871871037,0.012072,82834.0,82831.0,0.001]
[1741871871210,0.012072,82832.0,82831.0,0.001]
[1741871871439,0.012072,82832.0,82825.0,0.012073]
[1741871871988,0.012072,82832.0,82831.0,0.001]
[1741871872180,0.253524,82832.0,82831.0,0.001]
[1741871872377,0.253524,82832.0,82826.0,0.253541]
[1741871872582,0.01891697,82835.0,82828.0,0.012073]
[1741871872781,0.01891697,82835.0,82829.0,0.241459]
[1741871873655,0.01891697,82835.0,82831.0,0.241455]
[1741871874030,0.01891697,82835.0,82832.0,0.253521]
[1741871874470,0.01891697,82835.0,82833.0,0.241446]
[1741871874689,0.01891697,82835.0,82834.0,0.012072]
[1741871875132,0.0001693,82839.0,82838.0,0.253506]
[1741871875358,0.0001693,82839.0,82838.0,0.37320699]
[1741871876162,0.0001693,82839.0,82838.0,0.253506]
[1741871877148,0.0001693,82839.0,82838.0,0.257506]
[1741871877936,0.0122403,82839.0,82838.0,0.004]
[1741871878986,0.0122403,82839.0,82838.0,0.002]
[1741871880140,0.241458,82830.0,82826.0,0.0003384]
[1741871880334,0.25354,82827.0,82826.0,0.0003384]
[1741871880963,0.66688597,82827.0,82826.0,0.0003384]
[1741871881161,0.68142682,82827.0,82826.0,0.0003384]
[1741871882720,0.68142682,82827.0,82826.0,0.0013384]
[1741871883165,0.68142682,82827.0,82826.0,0.0003384]
[1741871883574,0.68142682,82827.0,82826.0,0.0013384]
[1741871883785,0.553555,82822.0,82821.0,1e-06]
[1741871883920,0.65119585,82822.0,82821.0,1e-06]
[1741871885352,0.65419585,82822.0,82821.0,1e-06]
[1741871887073,0.67312015,82822.0,82821.0,1e-06]
[1741871887286,0.67512015,82822.0,82821.0,1e-06]
[1741871887699,0.67312015,82822.0,82821.0,1e-06]
[1741871888099,0.67612015,82822.0,82821.0,1e-06]
[1741871888536,0.79608104,82822.0,82821.0,1e-06]
[1741871889128,0.67612015,82822.0,82821.0,1e-06]
[1741871889332,0.5229793,82822.0,82821.0,1e-06]
[1741871889761,0.8229793,82822.0,82821.0,1e-06]
[1741871890232,0.82114286,82822.0,82821.0,1e-06]
[1741871890477,0.81814286,82822.0,82821.0,1e-06]
[1741871890697,0.57264286,82822.0,82821.0,1e-06]
[1741871891064,0.57464286,82822.0,82821.0,1e-06]
[1741871891815,0.57264286,82822.0,82821.0,1e-06]
[1741871892169,0.57364286,82822.0,82821.0,1e-06]
[1741871892755,0.58818371,82822.0,82821.0,1e-06]
[1741871892957,0.58618371,82822.0,82821.0,1e-06]
[1741871894005,0.58718371,82822.0,82821.0,1e-06]
[1741871894626,0.57264286,82822.0,82821.0,1e-06]
[1741871895640,0.002,82822.0,82821.0,1e-06]
[1741871895808,0.014074,82822.0,82821.0,1e-06]
[1741871896007,0.254555,82822.0,82821.0,1e-06]
[1741871896199,0.001,82822.0,82821.0,0.012075]
[1741871896407,0.001,82822.0,82821.0,1e-06]
[1741871897058,0.001,82822.0,82821.0,0.0158098]
[1741871897391,0.001,82822.0,82821.0,1e-06]
[1741871897590,0.012074,82822.0,82821.0,1e-06]
[1741871898464,0.012074,82822.0,82821.0,0.001001]
[1741871898665,0.03099436,82822.0,82821.0,0.001001]
[1741871899486,0.03099436,82822.0,82821.0,0.002001]
[1741871899649,0.34553521,82822.0,82821.0,0.002001]
[1741871900088,0.42103521,82822.0,82821.0,0.001001]
[1741871901033,0.42403521,82822.0,82821.0,0.001001]
[1741871901446,0.40949436,82822.0,82821.0,1e-06]